bitfinex-derivatives/quotes_ETHF0:USTF0_20250430
["timestamp","ask_amount","ask_price","bid_price","bid_amount"]
[1746038678577,3.2078,1780.1,1780.0,6.59413]
[1746038679571,20.79918275,1780.3,1780.2,1.12341]
[1746038680172,20.79918275,1780.3,1780.2,4.95141]
[1746038681276,16.33499275,1780.3,1780.2,4.95141]
[1746038681468,17.45833275,1780.3,1780.2,4.95141]
[1746038681669,12.54399275,1780.3,1780.2,4.95141]
[1746038681872,3.2078,1780.3,1780.2,4.95141]
[1746038684479,4.33114,1780.3,1780.2,4.95141]
[1746038685079,6.08114,1780.3,1780.2,4.95141]
[1746038686279,1.12346,1780.2,1780.1,1.12342]
[1746038686577,2.87346,1780.2,1780.1,1.12342]
[1746038686973,1.75,1780.2,1780.1,1.12342]
[1746038687179,2.87341,1780.2,1780.1,1.12342]
[1746038687782,3.2078,1780.3,1780.2,1.12341]
[1746038688080,3.2078,1780.5,1780.4,1.12328]
[1746038688674,3.2078,1780.5,1780.4,1.93988]
[1746038689179,3.2078,1780.5,1780.4,5.76788]
[1746038689681,3.2078,1780.5,1780.4,4.95128]
[1746038689875,5.7244,1780.5,1780.4,4.95128]
[1746038690080,6.84762,1780.5,1780.4,4.95128]
[1746038695180,3.2078,1780.5,1780.4,4.95128]
[1746038695384,3.2078,1780.5,1780.4,5.80388]
[1746038699390,3.2078,1780.5,1780.4,7.45098]
[1746038700481,3.2078,1780.5,1780.4,8.25638]
[1746038707401,4.0138,1780.5,1780.4,8.25638]
[1746038707995,4.0138,1780.5,1780.4,7.45098]
[1746038708202,5.7265,1780.5,1780.4,7.45098]
[1746038710904,3.2078,1780.5,1780.4,7.45098]
[1746038711805,13.11302,1780.5,1780.4,3.828]
[1746038712012,14.81382,1780.5,1780.4,3.828]
[1746038712198,1.12333,1780.4,1780.3,1.12328]
[1746038712398,3.68783,1780.4,1780.3,1.12328]
[1746038712604,2.80844,1780.3,1779.7,10.71443196]
[1746038712803,3.2078,1779.9,1779.8,4.46076]
[1746038713106,3.2078,1779.9,1779.8,6.54716]
[1746038713613,3.2078,1779.9,1779.8,14.03809903]
[1746038713810,4.9086,1779.9,1779.8,14.03809903]
[1746038714209,5.7347,1779.9,1779.8,14.03809903]
[1746038714407,4.0715,1780.1,1780.0,1.12353]
[1746038714607,3.2078,1780.1,1780.0,1.12353]
[1746038715105,3.2078,1780.1,1780.0,1.98593]
[1746038715304,3.2078,1780.1,1780.0,5.81393]
[1746038715705,3.782,1780.2,1780.1,1.12347]
[1746038715903,4.6467,1780.4,1780.3,1.12334]
[1746038716603,4.6467,1780.4,1780.3,1.98574]
[1746038717214,5.76998,1780.4,1780.3,5.81374]
[1746038717403,6.2876,1780.4,1780.3,5.81374]
[1746038718816,12.58771709,1780.5,1780.4,1.12328]
[1746038719000,12.58771709,1780.5,1780.4,2.74898]
[1746038719209,12.58771709,1780.5,1780.4,6.57698]
[1746038719510,3.2078,1780.5,1780.4,6.57698]
[1746038720210,4.33102,1780.5,1780.4,3.828]
[1746038720410,6.02262,1780.5,1780.4,3.828]
[1746038721212,7.70753,1780.5,1780.1,2.83353]
[1746038721514,1.12341,1780.2,1780.1,2.83353]
[1746038722014,4.52801,1780.2,1780.1,2.83353]
[1746038723305,1.7077,1780.2,1780.1,2.83353]
[1746038723508,0.8726,1780.2,1780.1,2.83353]
[1746038724919,1.99601,1780.2,1780.1,2.83353]
[1746038725109,3.74871,1780.2,1780.1,2.83353]
[1746038727119,3.74871,1780.2,1780.1,1.12343]
[1746038728119,2.6253,1780.2,1780.1,1.12343]
[1746038728321,2.6253,1780.2,1780.1,2.78543]
[1746038728819,4.0429,1780.3,1780.2,1.12341]
[1746038729015,4.0429,1780.3,1780.2,3.61381]
[1746038729221,3.2078,1780.3,1780.2,3.61381]
[1746038730121,3.2078,1780.3,1780.2,7.44181]
[1746038730517,3.783,1780.4,1780.3,1.12334]
[1746038730715,12.58771709,1780.5,1780.4,1.12328]
[1746038731023,13.71093709,1780.5,1780.4,1.12328]
[1746038731317,1.12328,1780.4,1780.3,3.828]
[1746038731523,6.54928,1780.4,1780.3,3.828]
[1746038731715,11.54928,1780.4,1780.3,3.828]
[1746038732117,1.12341,1780.2,1780.1,1.12344]
[1746038732320,4.33121,1780.2,1780.1,1.12344]
[1746038732520,1.12353,1780.1,1780.0,1.12348]
[1746038732716,4.46853,1780.1,1780.0,1.12348]
[1746038733126,4.46853,1780.1,1780.0,4.95148]
[1746038733517,3.345,1780.1,1780.0,4.95148]
[1746038733715,4.46847,1780.1,1780.0,4.95148]
[1746038734321,3.345,1780.1,1780.0,4.95148]
[1746038734521,4.46847,1780.1,1780.0,4.95148]
[1746038734725,0.8663,1780.1,1780.0,4.95148]
[1746038734931,3.2078,1780.2,1780.1,1.12347]
[1746038735225,3.2078,1780.2,1780.1,3.60347]
[1746038735721,3.2078,1780.2,1780.1,4.41417]
[1746038738929,4.33121,1780.2,1780.1,4.41417]
[1746038739131,5.96561,1780.2,1780.1,4.41417]
[1746038739324,5.96561,1780.2,1780.1,2.77657]
[1746038739520,5.96561,1780.2,1780.1,1.12347]
[1746038742029,4.33121,1780.2,1780.1,1.12347]
[1746038742328,3.2078,1780.2,1780.1,1.12347]
[1746038742629,10.3229,1780.5,1780.4,1.12328]
[1746038742818,11.44612,1780.5,1780.4,1.12328]
[1746038743025,4.8499,1780.5,1780.4,1.12328]
[1746038743220,3.2078,1780.5,1780.4,2.74048]
[1746038743424,13.15491709,1780.6,1780.5,1.12322]
[1746038743631,13.15491709,1780.6,1780.5,2.87602]
[1746038744130,13.15491709,1780.6,1780.5,6.70402]
[1746038745834,3.775,1780.6,1780.5,6.70402]
[1746038749039,3.2078,1780.7,1780.6,1.12316]
[1746038749335,3.2078,1781.1,1780.6,4.8918]
[1746038749535,9.37991709,1781.2,1781.1,1.12284]
[1746038749832,9.37991709,1781.2,1781.1,41.92284]
[1746038750224,9.37991709,1781.2,1781.1,44.48544]
[1746038750430,12.58771709,1781.3,1781.2,1.12278]
[1746038750631,12.58771709,1781.3,1781.2,2.80678]
[1746038751237,13.71042709,1781.3,1781.2,6.63478]
[1746038751540,14.23901709,1781.3,1781.2,6.63478]
[1746038751838,15.36172709,1781.3,1781.2,4.95078]
[1746038752132,16.18692709,1781.3,1781.2,4.95078]
[1746038752337,16.18692709,1781.3,1781.2,1.12278]
[1746038752635,1.1229,1781.1,1781.0,1.12285]
[1746038752937,4.3307,1781.1,1781.0,1.12285]
[1746038753336,6.79389,1781.1,1781.0,1.1229]
[1746038754335,3.774,1781.2,1781.1,1.12284]
[1746038754936,4.89678,1781.2,1781.1,1.12284]
[1746038755129,6.64308,1781.2,1781.1,1.12284]
[1746038755332,6.64308,1781.2,1781.1,2.79084]
[1746038756238,4.033,1781.3,1781.1,2.79084]
[1746038756540,3.2078,1781.3,1781.2,2.79078]
[1746038757235,3.2078,1781.3,1781.2,6.61878]
[1746038757942,3.67075,1781.4,1781.3,1.12271]
[1746038758142,2.5481,1781.4,1781.3,2.82271]
[1746038758440,3.67075,1781.4,1781.3,2.82271]
[1746038758741,2.5481,1781.4,1781.3,2.82271]
[1746038758941,3.67075,1781.4,1781.3,2.82271]
[1746038760644,3.67075,1781.4,1781.3,1.12271]
[1746038760834,2.5481,1781.4,1781.1,4.47869]
[1746038761039,6.78438,1781.3,1781.2,1.12273]
[1746038761441,1.12289,1781.1,1781.0,1.12285]
[1746038761637,3.2078,1781.1,1781.0,1.12285]
[1746038762244,3.2078,1781.1,1781.0,1.94535]
[1746038762451,4.33064,1781.1,1781.0,1.12285]
[1746038762753,1.12297,1781.0,1780.9,1.12292]
[1746038762947,4.39147,1781.0,1780.9,1.12292]
[1746038763148,3.2685,1781.0,1780.9,1.12292]
[1746038763557,3.2078,1781.1,1781.0,1.1229]
[1746038763755,3.2078,1781.1,1781.0,3.5464]
[1746038764455,6.55598,1781.2,1781.1,1.12284]
[1746038766452,3.767,1781.2,1781.1,1.12284]
[1746038766649,4.0616,1781.5,1781.4,1.12265]
[1746038766848,6.6369,1781.5,1781.4,1.12265]
[1746038768148,3.2078,1781.5,1781.4,1.12265]
[1746038768555,3.2078,1781.5,1781.4,1.94625]
[1746038769759,2.85803,1781.6,1781.5,1.12259]
[1746038771453,1.12265,1781.5,1781.4,1.1226]
[1746038771654,5.95545,1781.5,1781.4,1.1226]
[1746038772046,9.78345,1781.5,1781.4,1.1226]
[1746038773360,8.6608,1781.5,1781.4,1.1226]
[1746038773857,8.6608,1781.5,1781.4,1.9845]
[1746038774162,4.8328,1781.5,1781.4,1.9845]
[1746038774661,3.2078,1781.5,1781.4,1.9845]
[1746038774861,3.2078,1781.5,1781.4,2.7788]
[1746038775751,6.5334,1781.7,1781.4,2.7788]
[1746038775752,8.6187,1781.7,1781.4,2.7788]
[1746038775959,8.6187,1781.7,1781.6,1.12253]
[1746038776158,10.2362,1781.7,1781.6,1.12253]
[1746038776455,3.766,1782.0,1781.9,1.12234]
[1746038776849,1.6175,1782.0,1781.9,2.86064]
[1746038777048,3.2078,1782.1,1782.0,1.12227]
[1746038777250,5.3918,1782.2,1782.0,1.12227]
[1746038777251,3.766,1782.2,1782.1,1.12221]
[1746038777454,9.37991709,1782.3,1782.2,1.12215]
[1746038777658,6.186,1782.5,1782.2,1.7383]
[1746038777860,1.6175,1782.4,1782.3,1.12202]
[1746038778262,2.73952,1782.4,1782.3,1.12202]
[1746038778463,1.12208,1782.3,1782.2,2.8604]
[1746038778660,2.73958,1782.3,1782.2,1.1221]
[1746038780162,6.56758,1782.3,1782.2,1.1221]
[1746038781359,2.73958,1782.3,1782.2,1.1221]
[1746038782956,1.12215,1782.2,1782.1,2.79226]
[1746038783156,3.59225,1782.2,1782.1,2.79226]
[1746038783459,3.59225,1782.2,1782.1,1.12216]
[1746038783660,1.12221,1782.1,1782.0,40.8]
[1746038783860,2.5087,1782.1,1782.0,1.12227]
[1746038784164,7.45897,1782.1,1782.0,1.12227]
[1746038784759,7.45891,1782.1,1782.0,1.12227]
[1746038784958,6.3367,1782.1,1782.0,1.12227]
[1746038785158,7.45891,1782.1,1782.0,1.12227]
[1746038786262,3.63091,1782.1,1782.0,1.12227]
[1746038786971,2.5087,1782.1,1782.0,1.12227]
[1746038787669,3.63091,1782.1,1782.0,1.12227]
[1746038787864,1.12227,1782.0,1781.9,1.12229]
[1746038788071,1.12239,1781.9,1781.8,1.12235]
[1746038788271,1.91659,1781.9,1781.8,1.12235]
[1746038788566,2.432,1781.9,1781.5,11.84427]
[1746038788764,1.12244,1781.8,1781.7,1.1224]
[1746038788971,2.76024,1781.8,1781.7,1.1224]
[1746038789271,6.58824,1781.8,1781.7,1.1224]
[1746038789574,5.4658,1781.8,1781.7,1.1224]
[1746038789763,6.5882,1781.8,1781.7,1.1224]
[1746038790264,1.12244,1781.8,1781.7,1.12246]
[1746038790469,1.12239,1781.9,1781.8,1.12234]
[1746038790772,2.76019,1781.9,1781.8,1.12234]
[1746038792367,6.58526,1782.1,1782.0,1.12227]
[1746038792568,8.28626,1782.1,1782.0,1.12227]
[1746038793176,4.45826,1782.1,1782.0,2.73657]
[1746038794775,4.45826,1782.1,1782.0,1.6143]
[1746038795081,1.12227,1782.0,1781.9,1.12228]
[1746038795376,2.83757,1782.0,1781.9,2.86138]
[1746038796077,1.7153,1782.0,1781.9,2.86138]
[1746038796277,2.75726,1782.1,1782.0,1.12227]
[1746038796579,4.47256,1782.1,1782.0,2.86137]
[1746038797074,8.089,1782.2,1782.1,1.12221]
[1746038797275,4.8812,1782.2,1782.1,3.64521]
[1746038797479,6.5171,1782.2,1782.1,3.64521]
[1746038798275,10.3451,1782.2,1782.1,3.64521]
[1746038799775,10.3451,1782.2,1782.1,1.7275]
[1746038799975,1.12221,1782.1,1782.0,1.12222]
[1746038800278,2.83131,1782.1,1782.0,1.12222]
[1746038800877,6.03911,1782.1,1782.0,1.12222]
[1746038801085,1.12227,1782.0,1781.9,2.85369]
[1746038801285,3.66367,1782.0,1781.9,2.85369]
[1746038801672,8.15803,1782.1,1782.0,1.12227]
[1746038801877,8.99033,1782.1,1782.0,2.85367]
[1746038802286,8.15803,1782.1,1782.0,2.85367]
[1746038802688,8.15801,1782.1,1782.0,2.85367]
[1746038803182,4.33001,1782.1,1782.0,2.85367]
[1746038803484,3.2078,1782.1,1782.0,2.85367]
[1746038803875,4.33001,1782.1,1782.0,2.85367]
[1746038804279,5.97131,1782.1,1782.0,2.85367]
[1746038804680,2.76351,1782.1,1782.0,2.85367]
[1746038806086,1.6413,1782.1,1782.0,2.85367]
[1746038806286,3.759,1782.2,1782.1,1.12221]
[1746038806484,3.759,1782.2,1782.1,3.57851]
[1746038807792,3.2078,1782.5,1782.1,5.26168]
[1746038807993,8.08878,1782.5,1782.4,1.12202]
[1746038808490,9.79528,1782.5,1782.4,1.12202]
[1746038809088,13.62328,1782.5,1782.4,1.12202]
[1746038810991,15.30631,1782.5,1782.2,0.7967]
[1746038811189,2.74638,1782.4,1782.3,1.12203]
[1746038811489,2.74632,1782.4,1782.3,1.12203]
[1746038811990,10.7948,1782.5,1782.4,1.12202]
[1746038812290,3.759,1782.5,1782.4,1.12202]
[1746038812586,5.13923,1782.7,1782.6,1.1219]
[1746038812983,6.73893,1782.7,1782.6,1.1219]
[1746038814194,10.56693,1782.7,1782.6,1.1219]
[1746038814691,10.56693,1782.7,1782.6,2.7385]
[1746038815388,1.1219,1782.6,1782.5,1.91671]
[1746038815692,2.786,1782.6,1782.5,3.54961]
[1746038816085,6.614,1782.6,1782.5,3.54961]
[1746038817096,1.6641,1782.6,1782.5,3.54961]
[1746038817393,4.0174,1782.7,1782.6,1.1219]
[1746038817594,4.0174,1782.7,1782.6,2.7548]
[1746038817795,4.0174,1782.7,1782.6,3.5709]
[1746038818298,5.13923,1782.7,1782.6,3.5709]
[1746038818691,6.81043,1782.7,1782.6,3.5709]
[1746038819591,1.1219,1782.6,1782.5,1.12191]
[1746038819798,2.7931,1782.6,1782.5,1.12191]
[1746038820395,1.6712,1782.6,1782.5,1.12191]
[1746038820597,1.6712,1782.6,1782.5,2.73421]
[1746038822095,5.4992,1782.6,1782.5,2.73421]
[1746038823095,1.6712,1782.6,1782.5,2.73421]
[1746038823998,4.0174,1782.7,1782.6,1.1219]
[1746038824199,4.0174,1782.7,1782.6,2.7261]
[1746038824593,0.8096,1782.7,1782.6,2.7261]
[1746038826900,1.93143,1782.7,1782.6,2.7261]
[1746038827296,6.1609,1782.8,1782.7,1.12183]
[1746038827498,3.758,1782.8,1782.7,3.54213]
[1746038827700,12.58771709,1782.9,1782.8,1.12177]
[1746038827902,3.2078,1782.9,1782.8,2.87057]
[1746038828595,4.5703,1783.1,1783.0,1.12164]
[1746038828996,3.752,1783.1,1783.0,1.12164]
[1746038829196,7.58,1783.1,1783.0,43.64444]
[1746038829500,3.828,1783.1,1783.0,43.64444]
[1746038830095,9.37991709,1783.2,1783.1,1.12158]
[1746038830296,9.37991709,1783.2,1783.1,2.87038]
[1746038830905,10.50143709,1783.2,1782.9,2.80415]
[1746038831094,13.20791709,1783.2,1783.1,1.12158]
[1746038831696,14.32943709,1783.2,1783.1,1.12158]
[1746038831891,13.20791709,1783.2,1783.1,1.12158]
[1746038832098,13.20791709,1783.2,1783.1,2.76218]
[1746038832902,4.94952,1783.2,1783.1,2.76218]
[1746038833102,6.62622,1783.2,1783.1,2.76218]
[1746038833402,5.5047,1783.2,1783.1,2.76218]
[1746038833802,5.51117637,1783.2,1783.1,2.76218]
[1746038834205,3.83447637,1783.2,1783.1,2.76218]
[1746038834405,3.83447637,1783.2,1783.1,3.61798]
[1746038835100,5.45137637,1783.2,1783.1,3.61798]
[1746038835805,3.83447637,1783.2,1783.1,3.61798]
[1746038836210,0.00647637,1783.2,1783.1,3.61798]
[1746038838012,0.00647637,1783.2,1783.1,6.82578]
[1746038838211,0.00647637,1783.2,1783.1,3.61798]
[1746038838415,0.00647637,1783.2,1783.1,6.82578]
[1746038839305,0.00647637,1783.2,1783.1,3.61798]
[1746038839505,0.00647637,1783.2,1783.1,6.82578]
[1746038839712,0.00647637,1783.2,1783.1,3.61798]
[1746038840515,8.7135,1783.6,1783.5,1.12133]
[1746038840817,4.0259,1783.8,1783.7,1.1212]
[1746038841321,5.7806,1783.8,1783.7,1.1212]
[1746038841725,5.7806,1783.8,1783.7,2.7476]
[1746038842018,3.69394,1783.8,1783.7,2.7476]
[1746038842217,7.52194,1783.8,1783.7,1.1212]
[1746038842420,10.72974,1783.8,1783.7,1.1212]
[1746038842928,1.12126,1783.7,1783.6,1.12122]
[1746038843126,6.4142,1783.7,1783.6,1.12122]
[1746038843316,6.4142,1783.7,1783.6,2.75282]
[1746038843627,3.828,1783.7,1783.6,2.75282]
[1746038844126,0.8721,1784.0,1783.9,1.12108]
[1746038844319,9.37991709,1784.1,1784.0,1.12102]
[1746038844624,6.9588,1784.2,1784.1,1.12095]
[1746038844820,3.751,1784.2,1784.1,1.12095]
[1746038845121,6.58599,1784.2,1784.1,1.12095]
[1746038845311,6.66299,1784.2,1784.1,1.12095]
[1746038846026,1.12095,1784.1,1784.0,2.75257]
[1746038846225,1.12095,1784.1,1784.0,1.12097]
[1746038846226,2.86905,1784.1,1784.0,1.12097]
[1746038847527,8.15674,1784.2,1784.1,1.12095]
[1746038847719,9.90484,1784.2,1784.1,1.12095]
[1746038848822,1.12095,1784.1,1784.0,2.86556]
[1746038849127,2.86385,1784.1,1784.0,2.86556]
[1746038849320,1.12105,1784.0,1783.9,1.12102]
[1746038849626,1.12123,1783.7,1783.5,8.63318]
[1746038849826,1.12123,1783.7,1783.6,1.12121]
[1746038850218,5.5709,1783.7,1783.6,1.12121]
[1746038850723,5.5709,1783.7,1783.6,2.86921]
[1746038851128,6.6921,1783.7,1783.6,2.86921]
[1746038851421,3.828,1783.7,1783.6,2.86921]
[1746038853827,3.828,1783.7,1783.6,7.86921]
[1746038854127,2.7164,1783.9,1783.8,1.12114]
[1746038855128,6.5444,1783.9,1783.8,1.12114]
[1746038855525,5.4233,1783.9,1783.8,1.12114]
[1746038856529,5.4233,1783.9,1783.8,2.81674]
[1746038859330,6.54438,1783.9,1783.8,2.81674]
[1746038859631,6.54438,1783.9,1783.8,1.12114]
[1746038860133,5.4233,1783.9,1783.8,1.12114]
[1746038860430,6.54438,1783.9,1783.8,1.12114]
[1746038860631,7.35408,1783.9,1783.8,1.12114]
[1746038861140,2.803,1783.8,1783.2,5.83]
[1746038861328,2.803,1783.8,1783.4,1.12135]
[1746038861329,1.12139,1783.5,1783.4,1.12135]
[1746038861825,4.51919,1783.5,1783.4,1.12135]
[1746038862134,8.34719,1783.5,1783.4,1.12135]
[1746038862334,7.2258,1783.5,1783.4,1.12135]
[1746038862526,8.34713,1783.5,1783.4,1.12135]
[1746038863633,7.2258,1783.5,1783.4,1.12135]
[1746038864233,5.5027,1783.5,1783.4,1.12135]
[1746038865134,6.62403,1783.5,1783.4,1.12135]
[1746038865326,8.33343,1783.5,1783.4,1.12135]
[1746038867733,1.12139,1783.4,1783.3,2.84872]
[1746038868038,2.77509,1783.4,1783.3,1.12142]
[1746038868236,6.60309,1783.4,1783.3,1.12142]
[1746038869039,5.4817,1783.4,1783.3,1.12142]
[1746038869239,6.60309,1783.4,1783.3,1.12142]
[1746038869740,9.81089,1783.4,1783.3,1.12142]
[1746038870241,1.12152,1783.3,1783.2,1.12148]
[1746038870542,2.73512,1783.3,1783.2,1.12148]
[1746038871237,6.56312,1783.3,1783.2,1.12148]
[1746038878944,1.12152,1783.2,1783.1,1.12153]
[1746038879242,8.37792,1783.2,1783.1,1.12153]
[1746038880140,1.12158,1783.1,1783.0,44.36539]
[1746038880338,2.86508,1783.1,1783.0,44.36539]
[1746038881145,6.69308,1783.1,1783.0,44.36539]
[1746038883153,5.5715,1783.1,1783.0,44.36539]
[1746038883946,6.69308,1783.1,1783.0,44.36539]
[1746038884157,1.12164,1783.0,1782.8,3.745]
[1746038884354,1.94246,1782.9,1782.8,2.83909]
[1746038884551,2.78366,1782.9,1782.8,1.12169]
[1746038884948,1.6619,1782.9,1782.8,1.12169]
[1746038885147,6.61161,1782.9,1782.8,2.83909]
[1746038885353,8.21971,1782.9,1782.8,2.83909]
[1746038886247,7.098,1782.9,1782.6,3.2078]
[1746038886456,1.12183,1782.7,1782.6,1.12184]
[1746038886650,2.72581,1782.8,1782.7,1.12183]
[1746038887154,5.432,1782.8,1782.7,1.12183]
[1746038887654,6.55377,1782.8,1782.7,1.12183]
[1746038888542,5.432,1782.8,1782.6,1.6797]
[1746038888747,4.94982,1782.8,1782.7,1.12183]
[1746038889259,3.828,1782.8,1782.7,1.12183]
[1746038889553,4.94977,1782.8,1782.7,1.12183]
[1746038891349,3.828,1782.8,1782.7,1.12183]
[1746038891555,3.828,1782.8,1782.7,6.12183]
[1746038891756,3.828,1782.8,1782.7,7.80373]
[1746038892149,6.50913,1783.2,1783.1,1.12158]
[1746038892763,6.50913,1783.2,1783.1,2.80348]
[1746038892953,3.742,1783.3,1783.2,1.12152]
[1746038893255,0.7985,1783.5,1783.4,1.12139]
[1746038893449,13.12191709,1783.6,1783.5,1.12133]
[1746038893656,14.24318709,1783.6,1783.5,1.12133]
[1746038894251,16.94991709,1783.6,1783.5,1.12133]
[1746038896358,7.57,1783.6,1783.5,1.12133]
[1746038897754,3.828,1783.6,1783.5,1.12133]
[1746038897957,3.828,1783.6,1783.5,1.91523]
[1746038898355,3.828,1783.6,1783.5,3.54773]
[1746038900253,3.741,1783.8,1783.5,3.54773]
[1746038900254,3.741,1783.8,1783.7,1.1212]
[1746038900454,4.86214,1783.8,1783.7,1.1212]
[1746038900653,1.12128,1783.7,1783.6,1.12123]
[1746038900853,1.12132,1783.6,1783.5,1.12128]
[1746038901055,1.97572,1783.6,1783.5,1.12128]
[1746038901661,1.97567,1783.6,1783.5,1.12128]
[1746038901853,0.8544,1783.6,1783.5,1.12128]
[1746038902154,4.6824,1783.6,1783.5,1.12128]
[1746038905666,5.80367,1783.6,1783.5,1.12128]
[1746038905964,4.6824,1783.6,1783.5,1.12128]
[1746038906165,5.80367,1783.6,1783.5,1.12128]
[1746038906968,4.6824,1783.6,1783.5,1.12128]
[1746038907663,5.80367,1783.6,1783.5,1.12128]
[1746038908467,7.44427,1783.6,1783.5,1.12128]
[1746038909766,6.323,1783.6,1783.3,0.7914]
[1746038910062,1.12158,1783.2,1783.1,1.12152]
[1746038910566,5.60725,1783.4,1783.3,1.12142]
[1746038910567,3.51889,1783.4,1783.3,1.12142]
[1746038911161,6.2255,1783.4,1783.3,2.85972]
[1746038911363,7.34689,1783.4,1783.3,2.85972]
[1746038912876,7.34689,1783.4,1783.3,1.12142]
[1746038913076,1.12146,1783.3,1783.2,1.12148]
[1746038913280,2.76266,1783.3,1783.2,1.12148]
[1746038913576,5.9705,1783.3,1783.2,1.12152]
[1746038913778,2.7627,1783.3,1783.2,1.12152]
[1746038913970,5.9705,1783.3,1783.2,1.12152]
[1746038914276,9.7985,1783.3,1783.2,1.12152]
[1746038914479,3.828,1783.3,1783.2,1.12152]
[1746038915784,4.94946,1783.3,1783.2,1.12152]
[1746038915978,6.68006,1783.3,1783.2,1.12152]
[1746038917182,3.828,1783.3,1783.2,1.12152]
[1746038918988,3.828,1783.3,1783.2,4.32932]
[1746038919175,3.736,1783.5,1783.4,1.12139]
[1746038919675,4.85733,1783.5,1783.4,3.55439]
[1746038919974,3.56943,1783.5,1783.4,3.55439]
[1746038920176,7.39743,1783.5,1783.4,3.55439]
[1746038926686,13.11591709,1784.0,1783.9,1.12108]
[1746038927090,13.11591709,1784.0,1783.9,3.57498]
[1746038927293,16.94391709,1784.0,1783.9,3.57498]
[1746038929082,9.37991709,1784.0,1783.9,3.57498]
[1746038929792,9.37991709,1784.0,1783.9,3.99841763]
[1746038930195,3.828,1784.0,1783.9,3.99841763]
[1746038932197,1.6576,1784.1,1784.0,1.12102]
[1746038932895,5.98635,1784.1,1784.0,1.12102]
[1746038933194,8.6934,1784.1,1784.0,1.12102]
[1746038933587,5.4856,1784.1,1784.0,1.12102]
[1746038933987,6.60655,1784.1,1784.0,1.12102]
[1746038934184,5.4856,1784.1,1784.0,1.12102]
[1746038935494,6.60655,1784.1,1784.0,1.12102]
[1746038935796,9.81435,1784.1,1784.0,1.12102]
[1746038936095,8.6934,1784.1,1784.0,1.12102]
[1746038936695,9.81435,1784.1,1784.0,1.12102]
[1746038937197,6.60655,1784.1,1784.0,1.12102]
[1746038937796,5.4856,1784.1,1784.0,1.12102]
[1746038940403,3.828,1784.1,1784.0,1.12102]
[1746038940602,3.828,1784.1,1784.0,2.87792]
[1746038941800,3.828,1784.1,1784.0,1.12102]
[1746038942004,7.0358,1784.1,1783.9,1.12103]
[1746038942202,3.60918,1784.0,1783.9,1.12103]
[1746038943199,7.43718,1784.0,1783.9,1.12103]
[1746038944204,6.3161,1784.0,1783.9,1.12103]
[1746038944599,6.3161,1784.0,1783.9,2.73943]
[1746038945099,3.828,1784.0,1783.9,2.73943]
[1746038949313,5.4332,1784.0,1783.9,2.73943]
[1746038951006,3.828,1784.0,1783.9,2.73943]
[1746038952207,10.57105,1784.3,1784.2,1.12089]
[1746038952510,9.37991709,1784.6,1784.2,2.80223]
[1746038952511,13.10991709,1784.6,1784.2,2.80223]
[1746038952809,13.10991709,1784.6,1784.5,1.1207]
[1746038953015,14.70281709,1784.6,1784.5,1.1207]
[1746038953204,18.53081709,1784.6,1784.5,1.1207]
[1746038953913,16.93791709,1784.6,1784.5,2.8744]
[1746038954306,13.20791709,1784.6,1784.5,2.8744]
[1746038954512,13.20791709,1784.6,1784.5,6.0822]
[1746038955916,13.20791709,1784.6,1784.5,11.0822]
[1746038956116,9.37991709,1784.6,1784.5,11.0822]
[1746038956718,9.37991709,1784.6,1784.5,6.0822]
[1746038957620,1.7005,1784.9,1784.8,1.12051]
[1746038957917,5.43,1785.0,1784.9,1.12045]
[1746038958518,17.43688709,1785.4,1785.3,1.1202]
[1746038958718,13.70788709,1785.4,1785.3,1.1202]
[1746038959022,9.37991709,1785.4,1785.3,1.1202]
[1746038959211,13.20791709,1785.4,1785.3,1.1202]
[1746038960014,13.20791709,1785.4,1785.3,2.8773]
[1746038962518,12.08136709,1785.4,1785.3,11.0851]
[1746038962720,12.08136709,1785.4,1785.3,6.0851]
[1746038962922,3.828,1785.4,1785.3,6.0851]
[1746038963118,1.12004,1785.6,1785.5,1.12007]
[1746038963308,2.8105,1785.7,1785.6,1.12001]
[1746038963516,4.49038,1785.7,1785.2,42.4353]
[1746038963807,6.53855,1785.6,1785.5,1.12007]
[1746038964013,5.4185,1785.6,1785.5,1.12007]
[1746038964315,9.2465,1785.6,1785.5,1.12007]
[1746038964620,10.36651,1785.6,1785.5,1.12007]
[1746038964823,1.1201,1785.5,1785.4,1.12009]
[1746038965115,2.4258,1785.5,1785.4,1.12009]
[1746038965417,3.54587,1785.5,1785.4,1.12009]
[1746038965615,3.54591,1785.5,1785.4,1.12014]
[1746038966218,7.37391,1785.5,1785.4,1.12014]
[1746038966716,10.58171,1785.5,1785.4,1.12014]
[1746038967112,9.4616,1785.5,1785.4,1.12014]
[1746038967317,6.2538,1785.5,1785.4,1.12014]
[1746038968035,3.828,1785.5,1785.4,1.12014]
[1746038968323,3.4262,1785.8,1785.7,1.11995]
[1746038968725,4.54609,1785.8,1785.7,1.11995]
[1746038969117,8.37409,1785.8,1785.7,1.11995]
[1746038969316,1.11999,1785.7,1785.6,1.11995]
[1746038969516,2.84269,1785.7,1785.6,1.11995]
[1746038970322,5.5507,1785.7,1785.6,1.11995]
[1746038971021,8.7585,1785.7,1785.3,3.2078]
[1746038971322,1.12014,1785.5,1785.4,1.1201]
[1746038971718,1.96134,1785.5,1785.4,1.1201]
[1746038972227,5.78934,1785.5,1785.4,1.1201]
[1746038973119,1.1202,1785.3,1785.2,41.92024]